Cogmind - Beta 10.2 @@@ ROGUE MODE // 2020.10.31 @ 19:14:58 // Halloween2020/ForbiddenLore Player: Winter Result: Destroyed by S-10 Pest with Light Assault Rifle Performance ------------- Evolutions (1) 500 Regions Visited (4) 800 Robots Destroyed (2) 10 Value Destroyed (46) 46 Prototype IDs (1) 20 Alien Tech Used (0) 0 Bonus (460) 460 TOTAL SCORE: 1836 Bonus ------- Pacifist 200 Follower Combat Kills 260 Cogmind --------- Core Integrity 0/400 Matter 246/300 Energy 400/400 System Corruption 0% Temperature Cool (0) Movement Core (100) Ox1 Location -9/Storage Parts ------- > --- POWER (1) -------- (None) > --- PROPULSION (3) --- (None) > --- UTILITY (3) ------ Large Battery Armor Integrity Analyzer > --- WEAPON (2) ------- Improved Assault Rifle > --- INVENTORY (4) ---- Ion Engine Improved Flight Unit Improved Sensor Array Peak State ------------ > --- POWER ------------ Ion Engine > --- PROPULSION ------- VTOL Module VTOL Module > --- UTILITY ---------- Small Storage Unit Improved Sensor Array > --- WEAPON ----------- Small Laser > --- INVENTORY -------- Ion Engine Large Battery Small Laser Small Laser [Rating: 9] Favorites ----------- Power Ion Engine Engine Ion Engine Propulsion VTOL Module Leg Aluminum Leg Flight Unit VTOL Module Utility Small Storage Unit Device Improved Sensor Array Storage Small Storage Unit Processor Armor Integrity Analyzer Weapon Small Laser Energy Gun Small Laser Ballistic Gun Improved Assault Rifle Launcher Rocket Launcher Build | -11 -10 -10 -9 -9 ------- Run | Scr Mat Min Mat Sto Slots Evolved 2 | . . . 2 . Power . | . . . . . Propulsion 1 | . . . 1 . Utility 1 | . . . 1 . Weapon . | . . . . . Parts Attached 19 | 2 5 . 2 10 Power 2 | . 1 . . 1 Engine 2 | . 1 . . 1 Core . | . . . . . Reactor . | . . . . . Propulsion 5 | . 4 . . 1 Treads . | . . . . . Leg 2 | . 2 . . . Wheel . | . . . . . Hover . | . . . . . Flight 3 | . 2 . . 1 Utility 5 | 1 . . 2 2 Device 1 | . . . 1 . Storage 3 | 1 . . 1 1 Processor 1 | . . . . 1 Hackware . | . . . . . Protection . | . . . . . Artifact . | . . . . . Weapon 7 | 1 . . . 6 Energy Gun 5 | 1 . . . 4 Energy Cannon . | . . . . . Ballistic Gun 1 | . . . . 1 Ballistic Cannon . | . . . . . Launcher 1 | . . . . 1 Special Weapon . | . . . . . Impact Weapon . | . . . . . Slashing Weapon . | . . . . . Piercing Weapon . | . . . . . Special Melee Weapon . | . . . . . Unidentified Prototypes 1 | . . . . 1 Parts Lost 10 | . . . . 10 Power 2 | . . . . 2 Propulsion 3 | . . . . 3 Utility 1 | . . . . 1 Weapon 4 | . . . . 4 Highest Loss Streak 9 | . . . . 9 Average Slot Usage (%) 56 | . 67 71 58 47 Engine 10 | . 14 14 11 8 Leg 2 | . 10 . . . Flight 16 | . 14 28 22 11 Storage 13 | . 14 14 12 12 Processor 4 | . . . . 8 Energy Gun 9 | . 14 14 11 5 Naked Turns . | . . . . . Heaviest Build 11 | 5 10 10 10 11 Greatest Support 20 | 3 20 10 10 10 Greatest Overweight (x) 3 | 1 3 . . 2 Average Overweight (x) . | . . . . . Largest Inventory Capacity 6 | 6 6 6 6 6 Average Capacity 5 | 5 6 6 6 5 Most Carried 6 | 6 5 4 5 6 Average Carried 4 | 5 3 4 4 4 Final Capacity 6 | 6 6 6 6 4 Final Carried 6 | 6 4 4 5 3 Class Distribution -------------------- 100% | Mutant Dominant Class ---------------- Mutant | -10/Materials Mutant | -10/Mines Mutant | -9/Materials Mutant | -9/Storage Resources | -11 -10 -10 -9 -9 ----------- Run | Scr Mat Min Mat Sto Matter Collected 328 | 198 . 44 . 86 Remotely . | . . . . . Salvage Created 73 | . . . . 73 Parts 5 | . . . . 5 Haulers Intercepted . | . . . . . Recyclers Shooed . | . . . . . Parts Field Recycled . | . . . . . Retrieved Matter . | . . . . . Parts Self-Destructed . | . . . . . Prevented . | . . . . . Kills | -11 -10 -10 -9 -9 ------- Run | Scr Mat Min Mat Sto Combat Hostiles Destroyed 2 | . . . . 2 Guns 2 | . . . . 2 Classes Destroyed 2 | . . . . 2 Swarmer 1 | . . . . 1 Brawler 1 | . . . . 1 Best Kill Streak 2 | . . . . 2 Combat Bots Only 2 | . . . . 2 Max Kills in Single Turn 1 | . . . . 1 Gunslinging . | . . . . . Exploded . | . . . . . Melee . | . . . . . Uniques/NPCs Destroyed . | . . . . . Combat | -11 -10 -10 -9 -9 -------- Run | Scr Mat Min Mat Sto Damage Taken 1140 | . 29 57 . 1054 Core 429 | . . 27 . 402 Absorbed by Shields . | . . . . . Core Remaining (%) 94 | 100 . 89 . . Volleys Fired 12 | . . . . 12 Largest 2 | . . . . 2 Hottest 105 | . . . . 105 Shots Fired 15 | . . . . 15 Gun 15 | . . . . 15 Cannon . | . . . . . Launcher . | . . . . . Special . | . . . . . Kinetic 8 | . . . . 8 Thermal 7 | . . . . 7 Explosive . | . . . . . Electromagnetic . | . . . . . Robot Hit Streak 4 | . . . . 4 Robot Miss Streak 2 | . . . . 2 Penetration Max . | . . . . . Secondary Targets . | . . . . . Shots Hit Robots 10 | . . . . 10 Core Hits 4 | . . . . 4 Critical Hits . | . . . . . Critical Kills . | . . . . . Critical Parts Destroyed . | . . . . . Melee Attacks . | . . . . . Impact . | . . . . . Slashing . | . . . . . Piercing . | . . . . . Sneak Attacks . | . . . . . Combat Hostiles . | . . . . . Follow-up Attacks . | . . . . . Damage Inflicted 164 | . . . . 164 Guns 161 | . . . . 161 Cannons . | . . . . . Explosions . | . . . . . Melee . | . . . . . Ramming 3 | . . . . 3 Kinetic 95 | . . . . 95 Thermal 66 | . . . . 66 Explosive . | . . . . . Electromagnetic . | . . . . . Impact . | . . . . . Slashing . | . . . . . Piercing . | . . . . . Highest Corruption . | . . . . . Average Corruption . | . . . . . Corruption Purged . | . . . . . Overload Shots . | . . . . . Overflow Damage . | . . . . . Projectiles . | . . . . . Explosions . | . . . . . Melee . | . . . . . Knockbacks . | . . . . . Impact . | . . . . . Kinetic . | . . . . . Secondary . | . . . . . Self-Inflicted Damage . | . . . . . Shots . | . . . . . Rammed 4 | . . . . 4 Targets Rammed 4 | . . . . 4 Kicked . | . . . . . Crushed . | . . . . . Highest Temperature 80 | . . . . 80 Average Temperature 32 | . . . . 32 Received Heat Transfer 348 | . . . . 348 Siege Activations . | . . . . . Robots Corrupted . | . . . . . Combat Hostiles . | . . . . . Parts Fried . | . . . . . Impact Corruptions . | . . . . . Robots Melted . | . . . . . Combat Hostiles . | . . . . . Parts Melted . | . . . . . Heat Transferred 149 | . . . . 149 Parts Sabotaged . | . . . . . Parts Stolen . | . . . . . Parts Stripped . | . . . . . Power Chain Reactions . | . . . . . Missiles Intercepted . | . . . . . Alert | -11 -10 -10 -9 -9 ------- Run | Scr Mat Min Mat Sto Peak Influence 312 | . 30 26 78 312 Initial 32 | . . 11 9 32 Average 88 | . 4 24 36 184 Maximum Alert Level 1 | . . . . 1 Low Security (%) 74 | 100 100 100 100 41 Level 1 25 | . . . . 58 Level 2 . | . . . . . Level 3 . | . . . . . Level 4 . | . . . . . Level 5 . | . . . . . High Security . | . . . . . Max Security . | . . . . . Squads Dispatched 4 | . . . . 4 Investigation 1 | . . . . 1 Extermination . | . . . . . Reinforcement 1 | . . . . 1 Assault 2 | . . . . 2 Garrison . | . . . . . Intercept . | . . . . . Construction Impeded . | . . . . . Haulers Reinforced . | . . . . . Stealth | -11 -10 -10 -9 -9 --------- Run | Scr Mat Min Mat Sto Distress Signals . | . . . . . Communications Jammed . | . . . . . Distress Signals . | . . . . . Times Spotted 55 | . 4 22 4 25 Peak Tracking Total 19 | . 4 19 5 12 Tactical Retreats 4 | . 1 2 . 1 Traps | -11 -10 -10 -9 -9 ------- Run | Scr Mat Min Mat Sto Traps Triggered 1 | . . . . 1 Indirectly . | . . . . . Trap Hack Attempts . | . . . . . Triggered . | . . . . . Disarmed . | . . . . . Reprogrammed . | . . . . . Reused . | . . . . . Traps Extracted . | . . . . . Installed . | . . . . . Triggered . | . . . . . Machines | -11 -10 -10 -9 -9 ---------- Run | Scr Mat Min Mat Sto Machines Disabled . | . . . . . Max in Single Turn . | . . . . . Machines Sabotaged . | . . . . . Garrisons Compromised . | . . . . . Overloaded Fab Kills . | . . . . . Fab Network Shutdowns . | . . . . . Hacking | -11 -10 -10 -9 -9 --------- Run | Scr Mat Min Mat Sto Machines Accessed 8 | . 1 . 2 5 Terminals 8 | . 1 . 2 5 Fabricators . | . . . . . Repair Stations . | . . . . . Recycling Units . | . . . . . Scanalyzers . | . . . . . Garrison Access . | . . . . . Total Hacks 13 | . 2 . 2 9 Successful 8 | . 1 . 1 6 Failed 5 | . 1 . 1 3 Catastrophic 1 | . 1 . . . Database Lockouts . | . . . . . Manual 10 | . 1 . 2 7 Terminals 13 | . 2 . 2 9 Fabricators . | . . . . . Repair Stations . | . . . . . Recycling Units . | . . . . . Scanalyzers . | . . . . . Garrison Access . | . . . . . Terminal Hacks 6 | . 1 . 1 4 Open Door 2 | . . . . 2 Level Access Points 1 | . . . 1 . Branch Access Points 1 | . . . . 1 Zone Layout 2 | . 1 . . 1 Fabricator Hacks . | . . . . . Repair Station Hacks . | . . . . . Recycling Unit Hacks . | . . . . . Scanalyzer . | . . . . . Garrison Access Hacks . | . . . . . Unauthorized Hacks 2 | . . . . 2 Terminals 2 | . . . . 2 Botnet 2 | . . . . 2 Fabricators . | . . . . . Repair Stations . | . . . . . Recycling Units . | . . . . . Scanalyzers . | . . . . . Garrison Access . | . . . . . Data Cores Recovered . | . . . . . Used . | . . . . . Hacking Detections 5 | . . . 2 3 Full Trace Events 1 | . . . . 1 Feedback Events . | . . . . . Feedback Blocked . | . . . . . Robot Schematics Acquired . | . . . . . Robots Built . | . . . . . Matter . | . . . . . Time . | . . . . . Total Robot Build Rating . | . . . . . Part Schematics Acquired . | . . . . . Parts Built . | . . . . . Matter . | . . . . . Time . | . . . . . Total Part Build Rating . | . . . . . Parts Repaired . | . . . . . Time . | . . . . . Parts Recycled . | . . . . . Recycled Matter . | . . . . . Retrieved Matter . | . . . . . Retrieved Components . | . . . . . Parts Scanalyzed . | . . . . . Part Schematics Acquired . | . . . . . Parts Damaged . | . . . . . Bothacking | -11 -10 -10 -9 -9 ------------ Run | Scr Mat Min Mat Sto Used RIF Installer . | . . . . . Robots Hacked . | . . . . . Non-combat . | . . . . . Combat . | . . . . . Robot Hacks Applied . | . . . . . Relay Couplers Released . | . . . . . Robots Rewired . | . . . . . Allies Hacked . | . . . . . Hacks Repelled . | . . . . . Allies | -11 -10 -10 -9 -9 -------- Run | Scr Mat Min Mat Sto Total Allies 2 | . . . . 2 Largest Group 2 | . . . . 2 Highest-Rated Group 62 | . . . . 62 Highest-Rated Ally 31 | . . . . 31 Total Orders . | . . . . . Ally Attacks 32 | . . . . 32 Total Damage 590 | . . . . 590 Kills 11 | . . . . 11 Allies Corrupted . | . . . . . Allies Melted . | . . . . . Intel | -11 -10 -10 -9 -9 ------- Run | Scr Mat Min Mat Sto Robot Analysis Total . | . . . . . Derelict Logs Recovered 1 | . . 1 . . Drone Launches . | . . . . . Drone Recoveries . | . . . . . Exploration | -11 -10 -10 -9 -9 ------------- Run | Scr Mat Min Mat Sto Turns Passed 426 | 45 83 60 53 185 Spaces Moved 673 | 40 136 161 131 205 Core 53 | 40 2 . . 11 Treads . | . . . . . Legs 24 | . 24 . . . Wheels . | . . . . . Hover . | . . . . . Flight 596 | . 110 161 131 194 Fastest Speed 37 | 50 37 37 37 37 Average Speed 52 | 91 54 37 37 66 Slowest Speed 200 | 100 200 37 37 200 Overloaded Moves . | . . . . . Propulsion Burnouts . | . . . . . Robots Hopped 7 | . 1 1 3 2 Cave-ins Triggered . | . . . . . Exploration Rate (%) 27 | 3 31 50 23 28 Regions Visited 4 Branch Regions 2 Pre-discovered Areas . | . . . . . Known Exits Taken 1 | . . 1 . . Unknown Exits Taken 3 | 1 1 . 1 . Scrap Searched 1 | . . 1 . . Spaces Dug . | . . . . . Terrain Destroyed . | . . . . . Melee . | . . . . . Projectile . | . . . . . AOE . | . . . . . Terrain Rammed . | . . . . . Walls Destroyed . | . . . . . Machines Disabled . | . . . . . Actions | -11 -10 -10 -9 -9 --------- Run | Scr Mat Min Mat Sto Total 718 | 47 144 159 132 236 Wait . | . . . . . Move 656 | 39 133 158 125 201 Hop 6 | . 1 1 2 2 Pick Up 15 | 6 3 . 1 5 Fast Attach 4 | 2 . . . 2 Attach 15 | . 5 . 2 8 Detach 3 | . . . 2 1 Swap . | . . . . . Drop 3 | . 2 . . 1 Fire 12 | . . . . 12 Melee . | . . . . . Ram 4 | . . . . 4 Kick . | . . . . . Crush . | . . . . . Escape Stasis . | . . . . . Rewire . | . . . . . Trap . | . . . . . Miscellaneous . | . . . . . Route ------- -11/Scrapyard -10/Materials -10/Mines (discovered 2 exits: *Mat x2) -9/Materials (discovered 4 exits: Mat x3 / *Sto) -9/Storage (discovered 1 exit: Rec) History --------- Turn | Location | Event 9 | -11/Scrapyard | Discovered new exit (range 16) 46 | -11/Scrapyard | Entered Materials 123 | -10/Materials | Discovered new exit (range 15) 129 | -10/Materials | Entered Mines 130 | -10/Mines | Assembled infested the area 162 | -10/Mines | Identified exit to Materials 187 | -10/Mines | Discovered exit to Materials (range 3) 189 | -10/Mines | Entered Materials 189 | -9/Materials | Evolved 2 slots: Propulsion x1, Utility x1 218 | -9/Materials | Identified exit to Materials 235 | -9/Materials | Discovered new exit (range 15) 242 | -9/Materials | Entered Storage 271 | -9/Storage | Identified exit to Recycling 284 | -9/Storage | Met a pair of Derelict thieves 307 | -9/Storage | Build established: Mutant 385 | -9/Storage | Core integrity fell below 50% 400 | -9/Storage | Core integrity fell below 20% 427 | -9/Storage | Destroyed by S-10 Pest with Light Assault Rifle Last Messages --------------- K-01 Serf collects debris. Acquired Particle Gun. Acquired Ion Engine. K-01 Serf collects debris. B-36 Bruiser destroyed. K-01 Serf collects debris. Sml. Laser destroyed. S-10 Pest destroyed. K-01 Serf collects debris. Ion Engine destroyed. K-01 Serf collects debris. Particle Gun destroyed. K-01 Serf collects debris. Acquired Prototype Ballistic Gun. Identified Imp. Assault Rifle. K-01 Serf collects debris. K-01 Serf destroyed. K-01 Serf collects debris. Sml. Storage Unit destroyed. K-01 Serf collects debris. Map ----- +----------------------------------------------------+ | | | | | | | | | | | | | | | | | | | | | | | | | | | | | | | ?????????????????????????????????????????????????? | | ?????????????????????????????????????????????????? | | ?????????????????????????????????????????????????? | | ?????????????????????????????????????????????????? | | ?????????????????????????????????????#???????????? | | ???????????????????????????????????? #???????????? | | ??????????????????????####### #???????????? | | ??????????????????????#] [### """"" #???????????? | | ??????????????????????#] [### " " #???????????? | | ??????????????????????#] [### """"" #???????????? | | ??????????????????????#]i@### """"" #???????????? | | ?????????????????????##gkg### " " #???????????? | | ?????????????????????#T l=### """"" ###########?? | | ?????????????????????## sk### % ###########?? | | ??????????######+######g#########+#/### # !!##?? | | ??????? %% =%=*%%%== %= # " ! ##?? | | ??????? % %*%*/%=%= [![ + ##?? | | ??????? % %%=%%[=% %! # " ##?? | | ??????? ########/##########/##T# !! ##?? | | ???????? ????????#%* """"" #### ! !##?? | | ???????? """ ?????????# """"" ##########?? | | ????????????""???????????# """"" T#########?? | | ????????????"????????????# ! ##?????????? | | ?????????????????????????# #??????????? | | ?????????????????????????######+#######??????????? | | ????????????????????????????# #??????????????? | | ????????????????????????????# #??????????????? | | ????????????????????????????# T #??#####???????? | | ????????????????????????????# #??#"""#???????? | | ????????????????????????????# #??#"R"#???????? | | ????????????????????????????## #####" "####????? | | ?????????????????????????????# # #????? | | ????????????????????????###### # ##????? | | ????????????????????????# T## # ####??? | | ????????????????????????# + + """#??? | +----------------------------------------------------+ Best States ------------- Heat Dissipation 28 Energy Generation 10 Energy Capacity 550 Matter Stores 300 Matter Capacity 300 Sight Range 16 Robot Scan Range 13 Terrain Scan Density 10 Evasion (%) 62 Armor Integrity Analysis 33 Item Schematics ----------------- None Robot Schematics ------------------ None Fabricated ------------ Nothing Alien Tech Used ----------------- None Achievements -------------- None Challenges ------------ None Game ------ Seed Winter Manual? 1 Play Time 00:15:02 Cumulative 7.0 hours Start 2020.10.31 @ 19:02:41 End 2020.10.31 @ 19:14:58 Sessions 1 Manual Loads 0 Difficulty Rogue Special Mode Halloween2020/ForbiddenLore Game No. 17 Rogue 17 Adventurer 0 Explorer 0 Win Type - Total 0 Types 0/0/0/0/0/0/0/0/0 Lore% 7 Gallery% 12 Achievement% 13 Wizard Run 0 Options --------- ASCII 0 Keyboard 0 Movement Mouse Keybinds 0 Fullscreen 1 Font 18/SmallcapsGlow Map View 76x50 Tactical HUD 0 Map Filters NONE Filters NONE Steam 1 RUN: 0ce1108b-4142-4b63-bf3d-c6ce8d996423